fUSD/lending_fUSD_20250113
["ID","MTS","AMOUNT","RATE_DAILY","PERIOD"]
[348852117,1736811043401,-500.0,9.999e-05,2]
[348852118,1736811043410,-500.0,9.999e-05,2]
[348852119,1736811043418,-500.0,9.999e-05,2]
[348852120,1736811043427,-503.11248164,9.999e-05,2]
[348852121,1736811043436,-500.0,9.999e-05,2]
[348852122,1736811043446,-500.0,9.999e-05,2]
[348852123,1736811043455,-2176.42,9.999e-05,2]
[348852124,1736811043465,-500.0,9.999e-05,2]
[348852125,1736811043475,-500.0,9.999e-05,2]
[348852126,1736811043483,-500.0,9.999e-05,2]
[348852127,1736811043496,-500.0,9.999e-05,2]
[348852128,1736811043505,-500.0,9.999e-05,2]
[348852129,1736811043514,-500.0,9.999e-05,2]
[348852130,1736811043523,-1143.25,9.999e-05,2]
[348852131,1736811043532,-500.0,9.999e-05,2]
[348852132,1736811043542,-500.0,9.999e-05,2]
[348852133,1736811043551,-500.0,9.999e-05,2]
[348852134,1736811043561,-500.0,9.999e-05,2]
[348852135,1736811043570,-2687.33,9.999e-05,2]
[348852136,1736811043580,-500.0,9.999e-05,2]
[348852137,1736811043589,-500.0,9.999e-05,2]
[348852138,1736811043598,-500.0,9.999e-05,2]
[348852139,1736811043607,-500.0,9.999e-05,2]
[348852140,1736811043617,-500.0,9.999e-05,2]
[348852141,1736811043626,-500.0,9.999e-05,2]
[348852142,1736811043637,-500.0,9.999e-05,2]
[348852143,1736811043646,-500.0,9.999e-05,2]
[348852144,1736811043655,-500.0,9.999e-05,2]
[348852145,1736811043665,-500.0,9.999e-05,2]
[348852146,1736811043674,-500.0,9.999e-05,2]
[348852147,1736811043683,-2304.22,9.999e-05,2]
[348852148,1736811043692,-500.0,9.999e-05,2]
[348852150,1736811043702,-500.0,9.999e-05,2]
[348852151,1736811043711,-500.0,9.999e-05,2]
[348852152,1736811043722,-500.0,9.999e-05,2]
[348852153,1736811043731,-500.0,9.999e-05,2]
[348852154,1736811043741,-500.0,9.999e-05,2]
[348852155,1736811043751,-500.0,9.999e-05,2]
[348852156,1736811043760,-500.0,9.999e-05,2]
[348852157,1736811043769,-500.0,9.999e-05,2]
[348852158,1736811043779,-500.0,9.999e-05,2]
[348852159,1736811043788,-355.78918213,9.999e-05,2]
[348852160,1736811043797,-500.0,9.999e-05,2]
[348852161,1736811043806,-578.87,9.999e-05,2]
[348852162,1736811043816,-546.29154423,9.999e-05,2]
[348852163,1736811043825,-500.0,9.999e-05,2]
[348852164,1736811043834,-500.0,9.999e-05,2]
[348852165,1736811043843,-500.0,9.999e-05,2]
[348852166,1736811043852,-500.0,9.999e-05,2]
[348852167,1736811043862,-508.22076774,9.999e-05,2]
[348852168,1736811043870,-500.0,9.999e-05,2]
[348852169,1736811043879,-500.0,9.999e-05,2]
[348852170,1736811043889,-500.0,9.999e-05,2]
[348852171,1736811043901,-500.0,9.999e-05,2]
[348852172,1736811043910,-1714.16,9.999e-05,2]
[348852173,1736811043920,-500.0,9.999e-05,2]
[348852174,1736811043930,-500.0,9.999e-05,2]
[348852175,1736811043940,-500.0,9.999e-05,2]
[348852176,1736811043950,-1522.53,9.999e-05,2]
[348852177,1736811043960,-500.0,9.999e-05,2]
[348852178,1736811043970,-500.0,9.999e-05,2]
[348852179,1736811043981,-630.4253386,9.999e-05,2]
[348852180,1736811043992,-212.38765497,9.999e-05,2]
[348852181,1736811044001,-500.0,9.999e-05,2]
[348852182,1736811044010,-500.0,9.999e-05,2]
[348852183,1736811044020,-500.0,9.999e-05,2]
[348852184,1736811044030,-500.0,9.999e-05,2]
[348852185,1736811044039,-500.0,9.999e-05,2]
[348852186,1736811044049,-3914.35,9.999e-05,2]
[348852187,1736811044058,-500.0,9.999e-05,2]
[348852188,1736811044067,-500.0,9.999e-05,2]
[348852189,1736811044076,-500.0,9.999e-05,2]
[348852190,1736811044086,-257.74687498,0.0001,2]
[348852191,1736811044095,-144142.52987083,0.0001,2]
[348852192,1736811044105,-2786141.66054422,0.0001,2]
[348852193,1736811044585,-7490.36837502,0.0001,2]
[348852194,1736811044598,-4580.54698,0.0001,2]
[348852195,1736811044609,-2001.74037034,0.0001,2]
[348852196,1736811044620,-1818.44525038,0.0001,2]
[348852197,1736811044639,-506.86214773,0.0001,2]
[348852198,1736811044946,-797.57,9.892e-05,2]
[348852199,1736811044956,-2343.49960001,0.0001,2]
[348852200,1736811044967,-757.84181148,0.0001,2]
[348852201,1736811044980,-16434.26436276,0.0001,2]
[348852202,1736811044998,-4055.43180006,0.0001,2]
[348852203,1736811045010,-26506.64,0.0001,2]
[348852204,1736811045022,-1428.50840388,0.0001,2]
[348852205,1736811045033,-1706.08813642,0.0001,2]
[348852206,1736811045188,-666.0,0.0001,2]
[348852207,1736811045209,-313.61361845,0.0001,2]
[348852208,1736811045543,-4277.24137639,0.0001,2]
[348852209,1736811045554,-835.04991627,0.0001,2]
[348852210,1736811045566,-929.74280957,0.0001,2]
[348852211,1736811045672,-4804.03705839,0.0001,2]
[348852212,1736811045684,-11190.27546747,0.0001,2]
[348852213,1736811045695,-282.22400001,0.0001,2]
[348852214,1736811045707,-311.7421292,0.0001,2]
[348852215,1736811045718,-269.38022628,0.0001,2]
[348852216,1736811045729,-362.05,0.0001,2]
[348852217,1736811045740,-512.6900035,0.0001,2]
[348852218,1736811045752,-1053.199876,0.0001,2]
[348852219,1736811045763,-512.00786555,0.0001,2]
[348852220,1736811046158,-500.0,9.892e-05,2]
[348852221,1736811046168,-41802.64246,0.0001,2]
[348852222,1736811046180,-20995.18058348,0.0001,2]
[348852223,1736811046193,-16777.97762511,0.0001,2]
[348852224,1736811046207,-24657.11803135,0.0001,2]
[348852225,1736811046220,-252.53,0.0001,2]
[348852226,1736811046232,-11219.27335682,0.0001,2]
[348852227,1736811046256,-857.69992783,0.0001,2]
[348852229,1736811192096,500.0,0.00022498,120]
[348852230,1736811199577,2000.0,0.00022252,120]
[348852231,1736811199734,2000.0,0.00022999,120]
[348852232,1736811207334,500.0,0.00022351,120]
[348852233,1736811231847,200.0,0.00022848,120]
[348852234,1736811287951,10000.0,0.00023,120]
[348852236,1736811507068,786.46,8.219e-05,2]
[348852237,1736811528769,200.6607442,0.00023,120]
[348852238,1736811588499,100000.0,0.00023,120]
[348852239,1736811638088,5172.7616,8.6e-05,2]
[348852240,1736811667854,584560.73961127,8.53e-05,2]
[348852246,1736811791255,500.0,0.000226,120]
[348852247,1736811798238,2000.0,0.00022407,120]
[348852248,1736811809050,500.0,0.00022585,120]
[348852249,1736811834396,200.0,0.00022999,120]
[348852266,1736812232242,-250.0,8.663e-05,2]
[348852267,1736812232252,-162.26,8.672e-05,2]
[348852268,1736812232262,-5224.10657061,8.778e-05,2]
[348852269,1736812232276,-4287.02578876,8.778e-05,2]
[348852270,1736812232358,-309.34764063,8.778e-05,2]
[348852271,1736812232367,-250.0,8.81e-05,2]
[348852272,1736812232376,-250.0,8.816e-05,2]
[348852273,1736812232386,-189.47,8.819e-05,2]
[348852274,1736812232395,-389.95,8.857e-05,2]
[348852275,1736812232404,-20167.27414417,8.897e-05,2]
[348852276,1736812232422,-3732.72585583,8.897e-05,2]
[348852277,1736812232431,-1000.0,8.925e-05,2]
[348852278,1736812232440,-587.31,8.967e-05,2]
[348852279,1736812232449,-305.43,9.028e-05,2]
[348852280,1736812232458,-150.0,9.151e-05,2]
[348852281,1736812232468,-6844.40133499,9.178e-05,2]
[348852282,1736812232481,-370.31153106,9.178e-05,2]
[348852283,1736812232500,-7588.01713395,9.178e-05,2]
[348852284,1736812232511,-166.27,9.185e-05,2]
[348852285,1736812232521,-1600.0,9.4e-05,3]
[348852286,1736812232533,-150.0,9.499e-05,2]
[348852287,1736812232544,-185.311,9.5e-05,2]
[348852288,1736812232554,-3200.0,9.5e-05,3]
[348852289,1736812232565,-4900.0,9.6e-05,3]
[348852290,1736812232575,-1303.35397819,9.7e-05,3]
[348852291,1736812232605,-414.7679528,9.7e-05,3]
[348852292,1736812232617,-345.3348,9.7e-05,3]
[348852293,1736812232628,-4436.54326901,9.7e-05,3]
[348852294,1736812232637,-390.9105469,9.739e-05,2]
[348852295,1736812232648,-867.0423,9.792e-05,2]
[348852296,1736812232658,-61.71968569,9.8e-05,3]
[348852297,1736812232669,-1080.79234568,9.8e-05,3]
[348852298,1736812232683,-1028.79,9.8e-05,3]
[348852299,1736812232695,-290.54130537,9.8e-05,3]
[348852300,1736812232713,-5738.15666326,9.8e-05,3]
[348852301,1736812232723,-500.0,9.89e-05,2]
[348852302,1736812232734,-500.0,9.89e-05,2]
[348852303,1736812232744,-500.0,9.89e-05,2]
[348852304,1736812232753,-500.0,9.89e-05,2]
[348852305,1736812232763,-500.0,9.891e-05,2]
[348852306,1736812232772,-903.93,9.891e-05,2]
[348852307,1736812232782,-500.0,9.891e-05,2]
[348852308,1736812232791,-500.0,9.891e-05,2]
[348852309,1736812232801,-500.0,9.891e-05,2]
[348852310,1736812232811,-500.0,9.891e-05,2]
[348852311,1736812232820,-502.24241625,9.891e-05,2]
[348852312,1736812232830,-606.89,9.891e-05,2]
[348852313,1736812232842,-501.61989621,9.891e-05,2]
[348852314,1736812232852,-500.0,9.891e-05,2]
[348852315,1736812232862,-501.70672907,9.891e-05,2]
[348852316,1736812232874,-500.0,9.891e-05,2]
[348852317,1736812232884,-501.81930994,9.891e-05,2]
[348852318,1736812232893,-575.47,9.891e-05,2]
[348852319,1736812232903,-501.31719963,9.891e-05,2]
[348852320,1736812232912,-500.0,9.891e-05,2]
[348852321,1736812232922,-500.0,9.891e-05,2]
[348852322,1736812232932,-500.0,9.891e-05,2]
[348852323,1736812232942,-500.0,9.891e-05,2]
[348852324,1736812232952,-500.0,9.891e-05,2]
[348852325,1736812232961,-500.0,9.891e-05,2]
[348852326,1736812232970,-500.0,9.891e-05,2]
[348852327,1736812232980,-500.0,9.891e-05,2]
[348852328,1736812232989,-500.0,9.891e-05,2]
[348852329,1736812232999,-500.0,9.891e-05,2]
[348852330,1736812233009,-655.81,9.891e-05,2]
[348852331,1736812233019,-500.0,9.891e-05,2]
[348852332,1736812233030,-500.0,9.891e-05,2]
[348852333,1736812233039,-501.36670722,9.891e-05,2]
[348852334,1736812233049,-500.0,9.891e-05,2]
[348852335,1736812233059,-500.0,9.891e-05,2]
[348852336,1736812233069,-500.0,9.891e-05,2]
[348852337,1736812233078,-500.0,9.891e-05,2]
[348852338,1736812233087,-500.0,9.891e-05,2]
[348852339,1736812233098,-500.0,9.891e-05,2]
[348852340,1736812233107,-500.0,9.891e-05,2]
[348852341,1736812233116,-500.0,9.891e-05,2]
[348852342,1736812233126,-517.538197,9.891e-05,2]
[348852343,1736812233136,-500.0,9.891e-05,2]
[348852344,1736812233146,-500.0,9.891e-05,2]
[348852345,1736812233156,-785.1,9.891e-05,2]
[348852346,1736812233165,-500.0,9.891e-05,2]
[348852347,1736812233174,-500.0,9.891e-05,2]
[348852348,1736812233184,-159.248968,9.891e-05,2]
[348852349,1736812233193,-500.0,9.891e-05,2]
[348852350,1736812233202,-500.0,9.891e-05,2]
[348852351,1736812233212,-500.0,9.891e-05,2]
[348852352,1736812233222,-156.864309,9.891e-05,2]
[348852353,1736812233231,-500.0,9.891e-05,2]
[348852354,1736812233240,-500.0,9.891e-05,2]
[348852355,1736812233249,-500.0,9.891e-05,2]
[348852356,1736812233258,-500.0,9.891e-05,2]
[348852357,1736812233268,-500.0,9.891e-05,2]
[348852358,1736812233280,-500.0,9.891e-05,2]
[348852359,1736812233289,-500.0,9.891e-05,2]
[348852360,1736812233299,-500.0,9.891e-05,2]
[348852361,1736812233309,-500.0,9.891e-05,2]
[348852362,1736812233320,-500.0,9.891e-05,2]
[348852363,1736812233330,-748.45,9.891e-05,2]
[348852364,1736812233340,-500.0,9.891e-05,2]
[348852365,1736812233349,-500.0,9.891e-05,2]
[348852366,1736812233358,-500.0,9.891e-05,2]
[348852367,1736812233368,-510.102466,9.891e-05,2]
[348852368,1736812233378,-500.0,9.891e-05,2]
[348852369,1736812233388,-765.98,9.891e-05,2]
[348852370,1736812233397,-500.0,9.891e-05,2]
[348852371,1736812233407,-500.0,9.891e-05,2]
[348852372,1736812233416,-500.0,9.891e-05,2]
[348852373,1736812233425,-500.0,9.891e-05,2]
[348852374,1736812233434,-500.0,9.891e-05,2]
[348852375,1736812233443,-500.0,9.891e-05,2]
[348852376,1736812233453,-500.0,9.891e-05,2]
[348852377,1736812233462,-500.0,9.891e-05,2]
[348852378,1736812233471,-500.0,9.891e-05,2]
[348852379,1736812233481,-500.60989328,9.891e-05,2]
[348852380,1736812233490,-500.0,9.891e-05,2]
[348852381,1736812233499,-500.0,9.891e-05,2]
[348852382,1736812233508,-500.0,9.891e-05,2]
[348852383,1736812233518,-500.0,9.891e-05,2]
[348852384,1736812233527,-500.0,9.891e-05,2]
[348852385,1736812233536,-378.66583148,9.891e-05,2]
[348852386,1736812233545,-508.66039595,9.891e-05,2]
[348852387,1736812233555,-856.63,9.891e-05,2]
[348852388,1736812233564,-500.0,9.891e-05,2]
[348852389,1736812233573,-304.46706092,9.891e-05,2]
[348852390,1736812233587,-195.53293908,9.891e-05,2]
[348852391,1736812233596,-500.0,9.891e-05,2]
[348852392,1736812233606,-647.97972262,9.891e-05,2]
[348852393,1736812233615,-909.45,9.891e-05,2]
[348852394,1736812233624,-500.0,9.891e-05,2]
[348852395,1736812233634,-340.65300167,9.891e-05,2]
[348852396,1736812233643,-500.0,9.891e-05,2]
[348852397,1736812233652,-500.0,9.891e-05,2]
[348852398,1736812233661,-500.0,9.891e-05,2]
[348852399,1736812233670,-854.79,9.891e-05,2]
[348852400,1736812233680,-500.0,9.891e-05,2]
[348852401,1736812233689,-500.0,9.891e-05,2]
[348852402,1736812233699,-886.56,9.891e-05,2]
[348852403,1736812233708,-500.0,9.891e-05,2]
[348852404,1736812233718,-500.0,9.891e-05,2]
[348852405,1736812233727,-500.0,9.891e-05,2]
[348852406,1736812233737,-500.0,9.891e-05,2]
[348852407,1736812233747,-500.0,9.891e-05,2]
[348852408,1736812233756,-500.0,9.891e-05,2]
[348852409,1736812233766,-500.0,9.891e-05,2]
[348852410,1736812233775,-500.0,9.891e-05,2]
[348852411,1736812233785,-500.0,9.891e-05,2]
[348852412,1736812233794,-500.0,9.891e-05,2]
[348852413,1736812233803,-500.0,9.891e-05,2]
[348852414,1736812233812,-887.75,9.891e-05,2]
[348852415,1736812233823,-500.0,9.891e-05,2]
[348852416,1736812233832,-500.0,9.891e-05,2]
[348852417,1736812233842,-500.0,9.891e-05,2]
[348852418,1736812233851,-500.0,9.891e-05,2]
[348852419,1736812233860,-500.0,9.891e-05,2]
[348852420,1736812233869,-500.0,9.891e-05,2]
[348852421,1736812233879,-352.86631841,9.891e-05,2]
[348852422,1736812233889,-191.80746674,9.891e-05,2]
[348852423,1736812233899,-500.0,9.891e-05,2]
[348852424,1736812233908,-500.0,9.891e-05,2]
[348852425,1736812233918,-785.17,9.891e-05,2]
[348852426,1736812233927,-500.0,9.891e-05,2]
[348852427,1736812233937,-500.0,9.891e-05,2]
[348852428,1736812233946,-500.0,9.891e-05,2]
[348852429,1736812233956,-500.0,9.891e-05,2]
[348852430,1736812233966,-372.91271621,9.891e-05,2]
[348852431,1736812233976,-500.0,9.891e-05,2]
[348852432,1736812233987,-500.0,9.891e-05,2]
[348852433,1736812233996,-500.0,9.891e-05,2]
[348852434,1736812234006,-1304.02,9.891e-05,2]
[348852435,1736812234015,-699.21,9.891e-05,2]
[348852436,1736812234024,-500.0,9.891e-05,2]
[348852437,1736812234034,-685.44,9.891e-05,2]
[348852438,1736812234043,-500.0,9.891e-05,2]
[348852439,1736812234052,-500.42362975,9.891e-05,2]
[348852440,1736812234061,-500.0,9.891e-05,2]
[348852441,1736812234070,-500.0,9.891e-05,2]
[348852442,1736812234079,-500.0,9.891e-05,2]
[348852443,1736812234089,-500.0,9.891e-05,2]
[348852444,1736812234098,-500.0,9.891e-05,2]
[348852445,1736812234108,-500.0,9.891e-05,2]
[348852446,1736812234117,-500.0,9.891e-05,2]
[348852447,1736812234126,-500.0,9.891e-05,2]
[348852448,1736812234135,-500.0,9.891e-05,2]
[348852449,1736812234145,-320.01055817,9.891e-05,2]
[348852450,1736812234154,-500.0,9.891e-05,2]
[348852451,1736812234163,-500.0,9.891e-05,2]
[348852452,1736812234173,-500.0,9.891e-05,2]
[348852453,1736812234182,-500.0,9.891e-05,2]
[348852454,1736812234191,-500.0,9.891e-05,2]
[348852455,1736812234202,-500.0,9.891e-05,2]
[348852456,1736812234211,-500.0,9.891e-05,2]
[348852457,1736812234220,-500.0,9.891e-05,2]
[348852458,1736812234229,-500.0,9.891e-05,2]
[348852459,1736812234239,-500.0,9.891e-05,2]
[348852460,1736812234248,-500.0,9.891e-05,2]
[348852461,1736812234489,-500.0,9.891e-05,2]
[348852462,1736812234498,-500.0,9.891e-05,2]
[348852463,1736812234507,-500.0,9.891e-05,2]
[348852464,1736812234517,-500.0,9.891e-05,2]
[348852465,1736812234527,-500.0,9.891e-05,2]
[348852466,1736812234536,-500.0,9.891e-05,2]
[348852467,1736812234545,-500.0,9.891e-05,2]
[348852468,1736812234554,-500.0,9.891e-05,2]
[348852469,1736812234563,-1200.71398111,9.891e-05,2]
[348852470,1736812234588,-1091.53601889,9.891e-05,2]
[348852471,1736812234599,-500.0,9.891e-05,2]
[348852472,1736812234609,-500.0,9.891e-05,2]
[348852473,1736812234619,-500.0,9.891e-05,2]
[348852474,1736812234629,-521.56,9.891e-05,2]
[348852475,1736812234638,-290.0173526,9.891e-05,2]
[348852476,1736812234647,-500.0,9.891e-05,2]
[348852477,1736812234658,-500.0,9.891e-05,2]
[348852478,1736812234668,-500.0,9.891e-05,2]
[348852479,1736812234678,-500.0,9.891e-05,2]
[348852480,1736812234687,-500.0,9.891e-05,2]
[348852481,1736812234697,-1678.21,9.891e-05,2]
[348852482,1736812234708,-500.0,9.891e-05,2]
[348852483,1736812234717,-500.0,9.891e-05,2]
[348852484,1736812234727,-500.0,9.891e-05,2]
[348852485,1736812234736,-500.0,9.891e-05,2]
[348852486,1736812234746,-500.0,9.891e-05,2]
[348852487,1736812234755,-642.08,9.891e-05,2]
[348852488,1736812234765,-500.0,9.891e-05,2]
[348852489,1736812234775,-500.0,9.891e-05,2]
[348852490,1736812234784,-464.25277512,9.891e-05,2]
[348852491,1736812234794,-300.43668018,9.891e-05,2]
[348852492,1736812234806,-199.56331982,9.891e-05,2]
[348852493,1736812234815,-171.78076666,9.891e-05,2]
[348852494,1736812234828,-328.36376911,9.891e-05,2]
[348852495,1736812234837,-500.0,9.891e-05,2]
[348852496,1736812234848,-567.59924121,9.891e-05,2]
[348852497,1736812234859,-500.0,9.891e-05,2]
[348852498,1736812234868,-500.0,9.891e-05,2]
[348852499,1736812234877,-500.0,9.891e-05,2]
[348852500,1736812234886,-592.26981165,9.891e-05,2]
[348852501,1736812234896,-175.40060742,9.891e-05,2]
[348852502,1736812238150,-500.0,9.89e-05,2]
[348852503,1736812238160,-324.59939258,9.891e-05,2]
[348852504,1736812238170,-500.0,9.891e-05,2]
[348852505,1736812238179,-500.0,9.891e-05,2]
[348852506,1736812238189,-529.74,9.891e-05,2]
[348852507,1736812238198,-1341.8,9.891e-05,2]
[348852508,1736812238208,-500.0,9.891e-05,2]
[348852509,1736812238217,-500.0,9.891e-05,2]
[348852510,1736812238227,-500.0,9.891e-05,2]
[348852511,1736812238236,-500.0,9.891e-05,2]
[348852512,1736812238245,-500.0,9.891e-05,2]
[348852513,1736812238255,-584.37610873,9.891e-05,2]
[348852514,1736812238263,-1119.48449869,9.891e-05,2]
[348852515,1736812238304,-1068.71550131,9.891e-05,2]
[348852516,1736812238315,-500.0,9.891e-05,2]
[348852517,1736812238325,-500.0,9.891e-05,2]
[348852518,1736812238334,-500.0,9.891e-05,2]
[348852519,1736812238344,-1128.04,9.891e-05,2]
[348852520,1736812238354,-500.0,9.891e-05,2]
[348852521,1736812238363,-582.15,9.891e-05,2]
[348852522,1736812238372,-521.58209063,9.891e-05,2]
[348852523,1736812238382,-500.0,9.891e-05,2]
[348852524,1736812238392,-500.0,9.891e-05,2]
[348852526,1736812238401,-500.0,9.891e-05,2]
[348852527,1736812238411,-500.0,9.891e-05,2]
[348852529,1736812238420,-500.0,9.891e-05,2]
[348852531,1736812238429,-1241.7,9.891e-05,2]
[348852532,1736812238439,-500.0,9.891e-05,2]
[348852534,1736812238449,-500.0,9.891e-05,2]
[348852535,1736812238458,-500.0,9.891e-05,2]
[348852536,1736812238468,-500.0,9.891e-05,2]
[348852537,1736812238478,-500.0,9.891e-05,2]
[348852538,1736812238487,-500.0,9.891e-05,2]
[348852539,1736812238496,-500.0,9.891e-05,2]
[348852540,1736812238507,-593.50798361,9.891e-05,2]
[348852541,1736812238518,-947.96,9.891e-05,2]
[348852542,1736812238528,-500.0,9.891e-05,2]
[348852543,1736812238537,-500.0,9.891e-05,2]
[348852544,1736812238546,-500.0,9.891e-05,2]
[348852545,1736812238556,-2275.97,9.891e-05,2]
[348852546,1736812238566,-500.0,9.891e-05,2]
[348852547,1736812238575,-500.0,9.891e-05,2]
[348852548,1736812238584,-500.0,9.891e-05,2]
[348852549,1736812238594,-6390.06,9.891e-05,2]
[348852550,1736812238603,-216.17575792,9.891e-05,2]
[348852551,1736812238613,-866.08,9.891e-05,2]
[348852552,1736812238623,-500.0,9.891e-05,2]
[348852553,1736812238632,-506.72994099,9.891e-05,2]
[348852554,1736812238641,-500.0,9.891e-05,2]
[348852555,1736812238651,-500.0,9.891e-05,2]
[348852556,1736812238660,-500.0,9.891e-05,2]
[348852557,1736812238669,-500.0,9.891e-05,2]
[348852558,1736812238679,-500.0,9.891e-05,2]
[348852559,1736812238688,-500.0,9.891e-05,2]
[348852560,1736812238697,-727.42,9.891e-05,2]
[348852561,1736812238707,-500.0,9.891e-05,2]
[348852562,1736812238716,-500.0,9.891e-05,2]
[348852563,1736812238726,-866.35,9.891e-05,2]
[348852564,1736812238735,-500.0,9.891e-05,2]
[348852565,1736812238745,-500.0,9.891e-05,2]
[348852566,1736812238754,-500.0,9.891e-05,2]
[348852567,1736812238763,-500.0,9.891e-05,2]
[348852568,1736812238773,-500.0,9.891e-05,2]
[348852569,1736812238783,-500.0,9.891e-05,2]
[348852570,1736812238792,-500.0,9.891e-05,2]
[348852571,1736812238801,-500.0,9.891e-05,2]
[348852572,1736812238811,-500.0,9.891e-05,2]
[348852573,1736812238820,-500.0,9.891e-05,2]
[348852574,1736812238830,-983.24,9.891e-05,2]
[348852575,1736812238840,-842.49,9.891e-05,2]
[348852576,1736812238849,-2544.52,9.891e-05,2]
[348852577,1736812238860,-500.0,9.891e-05,2]
[348852578,1736812238870,-500.0,9.891e-05,2]
[348852579,1736812238879,-500.0,9.891e-05,2]
[348852580,1736812238889,-1211.76,9.891e-05,2]
[348852581,1736812238899,-500.0,9.891e-05,2]
[348852582,1736812238908,-500.0,9.891e-05,2]
[348852583,1736812238917,-500.0,9.891e-05,2]
[348852584,1736812238927,-500.0,9.891e-05,2]
[348852585,1736812238936,-500.0,9.891e-05,2]
[348852586,1736812238946,-500.0,9.891e-05,2]
[348852587,1736812238954,-745.18,9.891e-05,2]
[348852588,1736812238964,-585.41,9.891e-05,2]
[348852589,1736812238973,-500.0,9.891e-05,2]
[348852590,1736812238982,-500.0,9.891e-05,2]
[348852591,1736812238992,-500.0,9.891e-05,2]
[348852592,1736812239002,-500.0,9.891e-05,2]
[348852593,1736812239011,-500.0,9.891e-05,2]
[348852594,1736812239020,-934.2,9.891e-05,2]
[348852595,1736812239030,-500.0,9.891e-05,2]
[348852596,1736812239040,-500.0,9.891e-05,2]
[348852597,1736812239049,-500.0,9.891e-05,2]
[348852598,1736812239058,-500.0,9.891e-05,2]
[348852599,1736812239067,-500.0,9.891e-05,2]
[348852600,1736812239076,-500.0,9.891e-05,2]
[348852601,1736812239086,-2335.16,9.891e-05,2]
[348852602,1736812239096,-500.0,9.891e-05,2]
[348852603,1736812239105,-6533.46,9.891e-05,2]
[348852604,1736812239114,-500.0,9.891e-05,2]
[348852605,1736812239124,-374.34872032,9.891e-05,2]
[348852606,1736812239133,-1810.22,9.891e-05,2]
[348852607,1736812239142,-500.0,9.891e-05,2]
[348852608,1736812239152,-500.0,9.891e-05,2]
[348852609,1736812239161,-500.0,9.891e-05,2]
[348852610,1736812239171,-500.0,9.891e-05,2]
[348852611,1736812239180,-500.0,9.891e-05,2]
[348852612,1736812239189,-500.0,9.891e-05,2]
[348852613,1736812239198,-500.0,9.891e-05,2]
[348852614,1736812239208,-500.0,9.891e-05,2]
[348852615,1736812239217,-500.0,9.891e-05,2]
[348852616,1736812239226,-500.0,9.891e-05,2]
[348852617,1736812239236,-500.0,9.891e-05,2]
[348852618,1736812239461,-3950.59,9.891e-05,2]
[348852619,1736812239471,-3236.72,9.891e-05,2]
[348852620,1736812239481,-500.0,9.891e-05,2]
[348852621,1736812239490,-500.0,9.891e-05,2]
[348852622,1736812239500,-500.0,9.891e-05,2]
[348852623,1736812239510,-500.0,9.891e-05,2]
[348852624,1736812239519,-500.0,9.891e-05,2]
[348852625,1736812239528,-500.0,9.891e-05,2]
[348852626,1736812239538,-500.0,9.891e-05,2]
[348852627,1736812239547,-1830.58,9.891e-05,2]
[348852628,1736812239557,-500.0,9.891e-05,2]
[348852629,1736812239567,-500.0,9.891e-05,2]
[348852630,1736812239576,-500.0,9.891e-05,2]
[348852631,1736812239586,-500.0,9.891e-05,2]
[348852632,1736812239595,-477.68400578,9.891e-05,2]
[348852633,1736812239604,-500.0,9.891e-05,2]
[348852634,1736812239615,-500.0,9.891e-05,2]
[348852635,1736812239624,-1181.53,9.891e-05,2]
[348852636,1736812239634,-500.0,9.891e-05,2]
[348852637,1736812239647,-500.0,9.891e-05,2]
[348852638,1736812239657,-500.0,9.891e-05,2]
[348852639,1736812239666,-500.0,9.891e-05,2]
[348852640,1736812239676,-500.0,9.891e-05,2]
[348852641,1736812239685,-500.0,9.891e-05,2]
[348852642,1736812239694,-500.0,9.891e-05,2]
[348852643,1736812239704,-500.0,9.891e-05,2]
[348852644,1736812239714,-2769.26,9.891e-05,2]